[Event "Chinese League Division-A 2024"]
[Site "Fuling Chongqing"]
[Date "2024.07.01"]
[Round "5.1"]
[White "Huang, Renjie"]
[Black "Li, Chao b"]
[Result "1/2-1/2"]
[ECO "B01"]
[WhiteElo "2480"]
[BlackElo "2645"]
[Annotator "TA"]
[PlyCount "62"]
[EventDate "2024.06.28"]
[EventType "team-tourn"]
[EventCountry "CHN"]
[SourceTitle "playchess.com"]
[Source "ChessBase"]
[SourceQuality "1"]
[TimeControl "40/5400+30:1800+30"]

{[%evp 9,62,47,51,36,39,36,45,41,41,39,39,41,58,26,27,34,32,28,28,11,42,21,33,15,22,23,39,4,5,-22,8,-15,22,-16,-13,-12,-12,-31,-18,-16,-2,0,-10,-15,-3,-4,-10,-9,0,-25,8,8,8,7,10]} 1. e4 {[%emt 0:00:01]} d5 {[%emt 0:00:11]} 2. exd5 {[%emt 0:01:04]} Qxd5 {[%emt 0:00:07]} 3. Nc3 {[%emt 0:00:06]} Qd6 {[%emt 0:00:10]} 4. Nf3 {[%emt 0:00:25][%cal Bg1f3,Bf3e5,Be5c4][%mdl 32]} c6 {[%emt 0:00:23]} 5. d4 {[%emt 0:00:18]} Bf5 {[%emt 0:00:09]} 6. Ne5 {[%emt 0:02:02] And now Qf3 would win.} Nd7 {[%emt 0:01:29]} 7. Nc4 {[%emt 0:01:04]} Qg6 {[%emt 0:00:07]} 8. Ne3 {[%emt 0:00:41] White is slightly better.} Ngf6 {[%emt 0:02:20] Against g4} 9. Be2 {[%emt 0:04:00] aiming for g4.} h5 {[%emt 0:00:08]} 10. O-O {[%emt 0:02:31]} e6 {[%emt 0:00:06]} 11. Nxf5 {[%emt 0:01:52]} Qxf5 {[%emt 0:02:23]} 12. Bd3 {[%emt 0:00:07]} Qa5 {[%emt 0:01:19]} 13. Qf3 {[%emt 0:03:02]} Bd6 {[%emt 0:01:13]} 14. a3 {[%emt 0:07:28]} h4 {[%emt 0:00:40]} 15. h3 {[%emt 0:02:18]} Qh5 {[%emt 0:04:00]} 16. Be2 {[%emt 0:02:40]} Qxf3 {[%emt 0:00:06]} 17. Bxf3 {[%emt 0:00:03]} Nb6 {[%emt 0:02:26]} 18. Bg5 {[%emt 0:02:50]} Be7 {[%emt 0:00:30]} 19. Rad1 {[%emt 0:02:46]} a5 {[%emt 0:01:03]} 20. Rfe1 {[%emt 0:04:25]} a4 {[%emt 0:03:08]} 21. Kf1 {[%emt 0:00:49]} Nfd5 {[%emt 0:03:04]} 22. Bxe7 {[%emt 0:01:52]} Kxe7 {[%emt 0:00:19]} 23. Ne4 {[%emt 0:00:13]} Nc4 {[%emt 0:01:07][%cal Ob7b5]} 24. Be2 {[%emt 0:04:00]} Nd6 {[%emt 0:01:01]} (24... Nxb2 $2 {loses.} 25. Rb1 $18) 25. Nxd6 {[%emt 0:00:16]} Kxd6 {[%emt 0:00:07]} 26. c4 {[%emt 0:00:04]} Nf4 {[%emt 0:01:50]} 27. Bf3 {[%emt 0:00:19]} Ra5 {[%emt 0:02:39]} 28. Re3 {[%emt 0:00:46]} Rd8 {[%emt 0:02:01]} 29. Re4 {[%emt 0:05:37]} Rf5 {[%emt 0:11:32] [#]} 30. d5 $1 {[%emt 0:03:13]} exd5 {[%emt 0:06:10]} 31. cxd5 {[%emt 0:00:07]} Nxd5 {[%emt 0:00:15] Weighted Error Value: White=0.11 (very precise) /Black=0.08 (flawless) .  Inaccurate:     	White=4     	Black=4      OK:         	White=7     	Black=10} 1/2-1/2

[Event "Chinese League Division-A 2024"]
[Site "Fuling Chongqing"]
[Date "2024.07.01"]
[Round "5.2"]
[White "Xiu, Deshun"]
[Black "Xiao, Tong"]
[Result "1-0"]
[ECO "D45"]
[WhiteElo "2514"]
[BlackElo "2518"]
[Annotator "TA"]
[PlyCount "197"]
[EventDate "2024.06.28"]
[EventType "team-tourn"]
[EventCountry "CHN"]
[SourceTitle "playchess.com"]
[Source "ChessBase"]
[SourceQuality "1"]
[TimeControl "40/5400+30:1800+30"]

{[%evp 94,197,177,125,139,138,175,180,170,179,180,180,179,172,172,172,172,172,172,172,172,164,172,172,172,164,172,144,172,110,165,152,164,164,172,164,164,164,164,164,179,0,164,164,164,164,164,164,171,161,204,204,268,268,414,414,211,174,414,407,407,393,385,155,29954,29956,29955,29957,29957,29958,29959,29961,29961,29963,29966,29966,29971,29963,29963,29963,29970,29971,29971,29956,29955,29946,12056,8820,3540,1827,1765,463,405,272,29965,29966,29966,29967,29967,29968,29976,29977,29977,29978,29979,29973]} 1. d4 {[%emt 0:00:03]} Nf6 {[%emt 0:00:07]} 2. c4 {[%emt 0:00:08]} e6 {[%emt 0:00:26]} 3. Nf3 {[%emt 0:00:13]} d5 {[%emt 0:00:29]} 4. Nc3 {[%emt 0:00:23]} c6 {[%emt 0:00:17]} 5. e3 {[%emt 0:02:58]} a6 {[%emt 0:00:10]} 6. b3 {[%emt 0:06:13]} Bb4 {[%emt 0:00:16]} 7. Bd2 {[%emt 0:00:07]} Nbd7 {[%emt 0:00:19]} 8. Bd3 {[%emt 0:01:40]} O-O {[%emt 0:01:07]} 9. O-O {[%emt 0:00:09] D45: Semi-Slav: 5 e3.} Bd6 {[%emt 0:01:32]} 10. Rc1 {[%emt 0:25:51]} e5 {[%emt 0:00:32]} 11. cxd5 {[%emt 0:00:48]} cxd5 {[%emt 0:00:08]} 12. dxe5 {[%emt 0:05:06]} Nxe5 {[%emt 0:00:13]} 13. Nxe5 {[%emt 0:00:27]} Bxe5 {[%emt 0:00:05]} 14. Ne2 {[%emt 0:03:35]} Ng4 {[%emt 0:12:45]} 15. f4 $146 {[%emt 0:09:09]} ({Predecessor:} 15. h3 Nf6 16. Bc3 Qe7 17. Qc2 Bxc3 18. Qxc3 Bd7 19. Nd4 Rfc8 20. Qa5 Qd6 21. Be2 {1-0 Dreev,A (2705)-Godena,M (2527) EU-ch 6th Warsaw 2005 (1)}) 15... Bb8 {[%emt 0:11:08]} 16. h3 {[%emt 0:00:50]} Nf6 {[%emt 0:02:55]} 17. Bc3 {[%emt 0:00:06]} Ba7 {[%emt 0:00:52]} 18. Bd4 {[%emt 0:00:07]} Bxd4 {[%emt 0:00:07]} 19. Nxd4 {[%emt 0:00:05]} Re8 {[%emt 0:00:31]} 20. Qf3 {[%emt 0:04:39]} Qd6 {[%emt 0:03:54]} 21. Rc2 {[%emt 0:04:07]} Bd7 {[%emt 0:00:56]} 22. Rfc1 {[%emt 0:00:33]} Re7 {[%emt 0:01:12]} 23. g4 {[%emt 0:08:55]} Rae8 {[%emt 0:01:42]} 24. Re2 {[%emt 0:01:25]} b5 {[%emt 0:08:52]} 25. Kg2 {[%emt 0:00:48]} b4 {[%emt 0:02:10]} 26. Rce1 {[%emt 0:08:03]} Ne4 {[%emt 0:02:37]} 27. Bxe4 {[%emt 0:00:11]} Rxe4 {[%emt 0:00:25]} 28. Kf2 {[%emt 0:02:24]} Qe7 {[%emt 0:03:14]} 29. Qg3 {[%emt 0:00:23]} Rc8 {[%emt 0:02:00]} 30. Rc2 {[%emt 0:01:10]} Re8 {[%emt 0:06:33]} 31. Rd2 {[%emt 0:00:36]} g5 {[%emt 0:05:24]} 32. fxg5 {[%emt 0:04:13]} Qxg5 {[%emt 0:00:45]} 33. Rd3 {[%emt 0:00:38]} Kh8 {[%emt 0:04:50]} 34. Nf3 {[%emt 0:02:30]} Qe7 {[%emt 0:00:42]} 35. Qh4 {[%emt 0:03:44]} Qxh4+ {[%emt 0:12:26]} 36. Nxh4 {[%emt 0:00:02]} Be6 {[%emt 0:00:11]} 37. Ng2 {[%emt 0:01:00]} Rc8 {[%emt 0:01:50]} 38. Nf4 {[%emt 0:02:02]} Re5 {[%emt 0:03:31]} 39. Red1 {[%emt 0:01:43]} a5 {[%emt 0:01:14]} 40. Kf3 {[%emt 0:00:00]} Re8 {[%emt 0:00:00]} 41. Rc1 {[%emt 0:06:46]} a4 {[%emt 0:23:46]} 42. Rc7 {[%emt 0:08:27]} axb3 {[%emt 0:00:23]} 43. axb3 {[%emt 0:00:05]} Kg7 {[%emt 0:03:09]} 44. Rb7 {[%emt 0:02:41]} Re4 {[%emt 0:00:49]} 45. Rb6 {[%emt 0:05:05]} Re5 {[%emt 0:14:06]} 46. Rxb4 {[%emt 0:00:45]} Rc8 {[%emt 0:00:02]} 47. Rbd4 {[%emt 0:05:36]} Rc1 {[%emt 0:01:54]} 48. Nxd5 {[%emt 0:00:45]} ({White should play} 48. Rd1 $18 Rc3 49. R1d3 (49. Nxd5 Bxd5+ 50. Rxd5 Rexe3+ 51. Kf2 Rxh3 $11)) 48... Rf1+ {[%emt 0:00:07]} 49. Kg3 {[%emt 0:00:46]} Rb1 {[%emt 0:00:20]} 50. Nf4 {[%emt 0:03:21]} Bxb3 {[%emt 0:00:20]} 51. Nh5+ {[%emt 0:00:28]} Rxh5 {[%emt 0:01:57]} 52. gxh5 {[%emt 0:00:02]} Be6 {[%emt 0:00:06]} 53. Ra3 {[%emt 0:01:47]} Rb5 {[%emt 0:00:20]} 54. Rh4 {[%emt 0:00:05]} Kh6 {[%emt 0:00:39]} 55. Raa4 {[%emt 0:00:07]} Rg5+ {[%emt 0:00:36]} 56. Kf2 {[%emt 0:00:13]} Rc5 {[%emt 0:00:16]} 57. Raf4 {[%emt 0:00:16]} Rc2+ {[%emt 0:00:10]} 58. Kg3 {[%emt 0:00:28]} Rc3 {[%emt 0:00:16]} 59. Kf3 {[%emt 0:00:50]} Rc5 {[%emt 0:00:53]} 60. Ke2 {[%emt 0:02:08]} Ra5 {[%emt 0:00:46]} 61. Kd3 {[%emt 0:00:24]} (61. Kf2 $18) 61... Rd5+ {[%emt 0:00:52]} (61... Ra3+ $16 62. Ke2 Ra2+ 63. Kf3 Kg5) 62. Kc3 {[%emt 0:01:07]} Rb5 {[%emt 0:00:11]} 63. Rf6+ {[%emt 0:00:41]} Kg7 {[%emt 0:00:12]} 64. Rf3 {[%emt 0:00:13]} Kh6 {[%emt 0:00:27]} 65. Rg3 {[%emt 0:00:51]} Rb3+ {[%emt 0:00:09]} 66. Kc2 {[%emt 0:00:07]} Rb5 {[%emt 0:00:10]} 67. Kc3 {[%emt 0:01:41]} Rb3+ $1 {[%emt 0:00:01]} 68. Kd2 {[%emt 0:00:01]} Rb2+ {[%emt 0:00:10]} 69. Kd3 {[%emt 0:00:24]} Rb3+ {[%emt 0:00:02]} 70. Ke2 {[%emt 0:00:06]} Rb5 {[%emt 0:00:29]} 71. Kf3 {[%emt 0:00:13]} Ra5 {[%emt 0:00:30]} 72. Rf4 {[%emt 0:00:32]} Kxh5 {[%emt 0:03:23]} 73. Rg7 {[%emt 0:00:50]} h6 {[%emt 0:00:31]} (73... Ra1 $142 74. Rxh7+ Kg6) 74. Kg3 $18 {[%emt 0:01:54]} Rg5+ {[%emt 0:00:02]} 75. Rg4 {[%emt 0:00:21]} f5 $2 {[%emt 0:00:57]} (75... Ba2 {is a better defense.} 76. Kh2 Be6) 76. R4xg5+ {[%emt 0:00:27]} hxg5 {[%emt 0:00:03]} 77. Re7 {[%emt 0:00:36]} Bd5 {[%emt 0:00:09] [#]} 78. h4 {[%emt 0:00:38]} (78. Re5 $1 $18 {has better winning chances.} Be4 79. Re8) 78... gxh4+ $2 {[%emt 0:00:18]} (78... f4+ $16 79. exf4 gxh4+ 80. Kh3 Be6+ 81. Kh2 Bc8) 79. Kh3 {[%emt 0:00:17]} Kg5 {[%emt 0:00:55]} 80. Rg7+ $1 {[%emt 0:00:02]} Kf6 {[%emt 0:00:54]} 81. Rh7 {[%emt 0:00:03]} Ke5 {[%emt 0:00:40]} 82. Rxh4 {[%emt 0:00:06]} ({And not} 82. Kxh4 Ke4 $11) 82... Be4 {[%emt 0:00:21]} 83. Kg3 {[%emt 0:00:05]} Bc2 {[%emt 0:00:04]} 84. Rh8 {[%emt 0:00:29]} Ke4 {[%emt 0:00:45]} 85. Kf2 {[%emt 0:00:57]} Kd3 {[%emt 0:00:49]} 86. Rd8+ {[%emt 0:00:05]} Kc3 {[%emt 0:00:33]} 87. Ke2 {[%emt 0:00:05]} Bb3 {[%emt 0:00:05]} 88. Rd3+ {[%emt 0:01:32]} Kc2 {[%emt 0:00:21]} 89. Rd4 {[%emt 0:00:05]} Kc3 {[%emt 0:00:11]} 90. Kf3 {[%emt 0:01:55]} Bc2 {[%emt 0:00:10]} 91. Rh4 {[%emt 0:00:49]} Kd2 {[%emt 0:00:29]} 92. Rh2+ {[%emt 0:00:04]} Kd1 {[%emt 0:00:04]} 93. Kf4 {[%emt 0:00:43]} Be4 $2 {[%emt 0:00:30]} (93... Bd3 $18 94. Ke5 Ke1) 94. Ke5 $1 {[%emt 0:00:08]} Ke1 {[%emt 0:00:03] [#]} 95. Rh4 $1 {[%emt 0:00:16]} Bd3 {[%emt 0:00:21] [#]} 96. Kd4 $1 {[%emt 0:00:09]} Bc2 {[%emt 0:02:25]} 97. Rh1+ {[%emt 0:00:36]} Kd2 {[%emt 0:00:13]} 98. Rh2+ {[%emt 0:00:03]} Kd1 {[%emt 0:00:15]} 99. Rf2 {[%emt 0:00:09]} 1-0

[Event "Chinese League Division-A 2024"]
[Site "Fuling Chongqing"]
[Date "2024.07.01"]
[Round "5.3"]
[White "Liu, Qingnan"]
[Black "Zhang, Di"]
[Result "1-0"]
[ECO "B76"]
[WhiteElo "2540"]
[BlackElo "2362"]
[Annotator "TA"]
[PlyCount "77"]
[EventDate "2024.06.28"]
[EventType "team-tourn"]
[EventCountry "CHN"]
[SourceTitle "playchess.com"]
[Source "ChessBase"]
[SourceQuality "1"]
[TimeControl "40/5400+30:1800+30"]

{[%evp 22,77,21,16,38,38,36,45,39,38,66,50,52,45,47,55,36,58,97,0,60,41,36,0,115,0,0,0,0,0,52,0,0,0,0,0,0,0,0,0,0,0,83,77,214,230,464,465,452,458,429,445,490,470,468,401,396,390]} 1. e4 {[%emt 0:00:07]} c5 {[%emt 0:00:11]} 2. Nf3 {[%emt 0:00:04]} d6 {[%emt 0:00:13]} 3. d4 {[%emt 0:00:04]} cxd4 {[%emt 0:00:07]} 4. Nxd4 {[%emt 0:00:02]} Nf6 {[%emt 0:00:09]} 5. Nc3 {[%emt 0:00:03]} g6 {[%emt 0:00:25]} 6. Be3 {[%emt 0:00:03]} Bg7 {[%emt 0:00:13]} 7. f3 {[%emt 0:00:02]} O-O {[%emt 0:00:15]} 8. Qd2 {[%emt 0:00:03]} Nc6 {[%emt 0:00:24]} 9. O-O-O {[%emt 0:00:05][%cal Ba1d1,Bd1d4,Bd4a4][%mdl 32]} d5 {[%emt 0:00:30]} 10. Nxc6 {[%emt 0:00:04]} bxc6 {[%emt 0:00:04]} 11. Bh6 {[%emt 0:00:02]} Bxh6 {[%emt 0:02:40]} 12. Qxh6 {[%emt 0:00:06]} Rb8 {[%emt 0:05:13]} 13. e5 {[%emt 0:00:19]} Nd7 {[%emt 0:00:11]} 14. Rd4 {[%emt 0:00:04] Intending Rh4 and mate.} Re8 $1 {[%emt 0:00:29][%cal Od8b6] [#] Strongly threatening ...Qb6! White is slightly better.} (14... Nxe5 15. Rh4) 15. e6 $1 $40 {[%emt 0:00:41][%mdl 128] Black needs to defend precisely.} Nf6 {[%emt 0:00:26] Threatens to win with ...Qb6.} (15... fxe6 16. Bd3) 16. exf7+ {[%emt 0:00:05]} Kxf7 {[%emt 0:00:05]} 17. Ra4 $1 {[%emt 0:00:11][%cal Of1d3]} Qb6 {[%emt 0:16:13]} 18. b3 {[%emt 0:00:04] Active counter play!} Qc5 {[%emt 0:00:07]} 19. Kb2 {[%emt 0:00:06]} a5 {[%emt 0:01:30] [#]} 20. a3 {[%emt 0:00:17] Prevents Rb4} (20. g4 $1 $16 {[%cal Rg4g5] Hoping for g5.} Rb4 21. g5) 20... e5 {[%emt 0:11:17]} (20... Qf2 $11) 21. g4 {[%emt 0:26:49]} Be6 {[%emt 0:04:09] ...Kg8 is the strong threat.} 22. Bd3 {[%emt 0:07:05]} Rh8 {[%emt 0:16:59]} (22... d4 $11 {remains equal.} 23. Ne2 (23. Ne4 $2 Nxe4 24. Qxh7+ Kf8 $19) 23... Rf8 (23... Qd5 24. Nc1 $14)) 23. Qg5 {[%emt 0:04:27]} (23. Rf1 $16) 23... Nd7 $11 {[%emt 0:04:45]} 24. f4 {[%emt 0:00:54]} Qe3 {[%emt 0:10:03] ...d4 would now be deadly.} 25. Rd1 {[%emt 0:09:10][%cal Oa4e4] aiming for Re4!} Rhd8 {[%emt 0:19:38]} (25... Rhe8 $11) 26. Qh4 {[%emt 0:03:19]} ({White should play} 26. Qh6 $1 $14 Rh8 27. Qh4) 26... Kg8 $1 {[%emt 0:00:36]} 27. f5 $1 {[%emt 0:22:52]} (27. Rxa5 Qxf4 28. h3 e4 $19) 27... Bf7 {[%emt 0:00:08]} 28. Rxa5 {[%emt 0:01:32]} e4 {[%emt 0:01:16]} 29. fxg6 {[%emt 0:04:14]} hxg6 {[%emt 0:01:10][%cal Od8e8] And now ...Re8! would win.} 30. Qe7 {[%emt 0:02:44]} Qb6 {[%emt 0:02:37]} 31. Rf1 {[%emt 0:01:38]} Rf8 {[%emt 0:00:05]} (31... Ne5 $1 $11 32. Qxe5 exd3) 32. Ra6 $16 {[%emt 0:01:35] Chess con chili.} Qc7 {[%emt 0:00:21] [#] This costs Black the game.} (32... Qd8 $16 33. Qxd8 Rbxd8) 33. Bb5 $1 $18 {[%emt 0:01:54]} (33. Be2 Rbe8 34. Qg5 d4 $11 (34... Qxh2 35. Rxc6 Ne5 36. Rb6 $16) (34... Qxh2 35. Rxc6 Ne5 36. Ra6 $11)) 33... Rbe8 $2 {[%emt 0:01:03]} (33... cxb5 34. Rxf7) (33... Qe5 34. Qxe5 (34. Qxd7 Be8 $18) 34... Nxe5) 34. Rxc6 {[%emt 0:00:09]} Qxc6 {[%emt 0:01:17]} 35. Qxf8+ {[%emt 0:00:08]} ({Weaker is} 35. Qxd7 Qxd7 36. Bxd7 Re7 $11 (36... d4 37. Bxe8 dxc3+ 38. Kxc3 $11)) 35... Nxf8 {[%emt 0:01:25]} 36. Bxc6 {[%emt 0:00:05]} Re5 {[%emt 0:00:31]} 37. a4 {[%emt 0:00:43][%cal Ba3a4,Ba4a5][%mdl 32]} e3 {[%emt 0:00:26]} 38. a5 {[%emt 0:00:46] Black must now prevent a6.} d4 {[%emt 0:01:03]} 39. Nb5 {[%emt 0:00:15] Weighted Error Value: White=0.18 (very precise) /Black=0.37.  Mistake:       	White=3     	Black=6      Inaccurate:     	---       	Black=2      OK:         	White=12    	Black=5      Best:        	White=5     	Black=3      Strong:       	White=3     	Black=2} 1-0

[Event "Chinese League Division-A 2024"]
[Site "Fuling Chongqing"]
[Date "2024.07.01"]
[Round "5.4"]
[White "Li, Ruofan"]
[Black "Zhang, Xiao"]
[Result "1-0"]
[ECO "D20"]
[WhiteElo "2321"]
[BlackElo "2193"]
[Annotator "TA"]
[PlyCount "125"]
[EventDate "2024.06.28"]
[EventType "team-tourn"]
[EventCountry "CHN"]
[SourceTitle "playchess.com"]
[Source "ChessBase"]
[SourceQuality "1"]
[TimeControl "40/5400+30:1800+30"]

{[%evp 21,125,11,65,18,41,0,24,21,17,14,44,-59,-79,-120,-114,-141,-131,-139,-110,-116,-100,-93,-79,-73,97,0,12,8,2,-2,0,-3,0,-6,17,22,30,28,502,495,473,419,418,333,460,371,366,340,332,311,336,298,379,377,415,408,402,401,399,384,531,543,495,494,488,480,776,773,823,765,781,947,964,1010,972,788,862,1009,1037,1035,1015,965,1527,1538,1857,1584,6946,6539,7381,7093,7381,4947,29979,29979,29985,29982,29982,29983,29983,29984,29984,29985,29984,29984,29987,29988]} 1. d4 {[%emt 0:00:03]} d5 {[%emt 0:00:15]} 2. c4 {[%emt 0:00:17]} dxc4 {[%emt 0:00:21]} 3. e4 {[%emt 0:00:22]} e5 {[%emt 0:00:27]} 4. Nf3 {[%emt 0:00:16]} exd4 {[%emt 0:00:07]} 5. Bxc4 {[%emt 0:00:05]} Bb4+ {[%emt 0:00:05]} 6. Nbd2 {[%emt 0:00:22]} Nc6 {[%emt 0:00:09]} 7. O-O {[%emt 0:00:50]} Nf6 {[%emt 0:00:08]} 8. e5 {[%emt 0:01:10]} Nd5 {[%emt 0:00:06]} 9. Nb3 {[%emt 0:00:56] D20: Queen's Gambit Accepted: 3 e3 and 3 e4.} Be7 {[%emt 0:00:08]} 10. Qe2 {[%emt 0:02:22]} O-O {[%emt 0:03:27]} 11. Rd1 {[%emt 0:01:36]} Nb6 {[%emt 0:18:56]} (11... Bg4 $11) 12. Bb5 {[%emt 0:12:19]} (12. Nbxd4 $14 Nxd4 13. Rxd4) 12... Bd7 {[%emt 0:10:17]} 13. Qe4 $146 {[%emt 0:17:24]} ({Predecessor:} 13. Bf4 Nb4 14. Nbxd4 N4d5 15. Bg3 Bxb5 16. Nxb5 c6 17. Nbd4 Re8 18. e6 Bf6 19. exf7+ Kxf7 {1-0 Levin,E (2544)-Oganian,M (2448) St Petersburg  North-West Cup-A 2017 (8)}) 13... a6 {[%emt 0:08:12]} 14. Bd3 {[%emt 0:00:05]} g6 {[%emt 0:00:09]} 15. Bh6 {[%emt 0:00:12]} Re8 {[%emt 0:00:15]} 16. Rac1 {[%emt 0:00:28]} ({White should play} 16. Qf4 $14) 16... Bf6 $15 {[%emt 0:05:12]} 17. Bf4 {[%emt 0:08:42]} Bf5 {[%emt 0:04:49]} 18. Qe2 {[%emt 0:08:58]} Bg4 {[%emt 0:01:22]} 19. Be4 {[%emt 0:15:48]} Nxe5 {[%emt 0:11:35]} (19... Bxe5 20. Bxc6 bxc6 (20... Bxf4 21. Bxe8 Qxe8 22. Qxe8+ Rxe8 23. Ra1 $14) 21. Bxe5 Bxf3 22. Qxf3 (22. gxf3 $2 Qg5+ 23. Kh1 Rxe5 $19) 22... Rxe5 23. Nxd4 $14 (23. Qxc6 Rd5 $11)) 20. Nbxd4 {[%emt 0:00:10]} Nxf3+ {[%emt 0:02:37]} 21. gxf3 {[%emt 0:05:02]} Bxd4 {[%emt 0:05:11]} 22. fxg4 {[%emt 0:00:04] [#]} (22. Bxc7 $2 Qe7 (22... Rxe4 $2 23. Qxe4 Bxf2+ 24. Kxf2 $18) 23. Rxd4 Bxf3 $19) 22... f5 $2 {[%emt 0:03:00]} (22... c6 $1 $17 {[%cal Of7f5] White must now prevent ...f5!} 23. Qf3 Qf6) 23. Bxc7 {[%emt 0:01:23]} (23. gxf5 $16 {And now Qf3 would win.} Qf6 24. Qf3 (24. Bxc7 gxf5 25. Bxb6 Bxb6 $11) (24. Rxc7 Be5 $18)) 23... Qf6 $11 {[%emt 0:12:38]} 24. Bxb6 {[%emt 0:03:32]} Bxb6 {[%emt 0:00:16]} 25. Bd5+ {[%emt 0:10:54]} Kh8 {[%emt 0:00:29]} 26. Qf3 {[%emt 0:01:21]} Rad8 {[%emt 0:02:50]} 27. gxf5 {[%emt 0:02:41]} Qxf5 {[%emt 0:01:01]} (27... Rf8 {with more complications.} 28. Bxb7 Qxb2 29. Rxd8 Qxc1+ 30. Rd1 Qg5+) 28. Bxb7 {[%emt 0:03:06]} Rxd1+ {[%emt 0:00:43]} (28... Qg5+ {simplifies} 29. Kh1 Bd4 30. b3 Rf8) 29. Rxd1 {[%emt 0:00:06]} Bxf2+ $2 {[%emt 0:00:40][%mdl 8192]} (29... Re5 $11 {and Black has nothing to worry.}) 30. Kxf2 $18 {[%emt 0:00:58]} Qc2+ {[%emt 0:01:05]} 31. Kg1 {[%emt 0:00:14]} Qxb2 {[%emt 0:00:39]} 32. Bd5 {[%emt 0:00:35]} ({Worse is} 32. Bxa6 Qb6+ 33. Qf2 Qxa6 $11) 32... Rd8 {[%emt 0:00:58]} 33. Qe4 {[%emt 0:00:44]} Qb6+ {[%emt 0:01:22]} 34. Qd4+ {[%emt 0:01:10]} Qxd4+ {[%emt 0:00:03]} 35. Rxd4 {[%emt 0:00:04]} Kg7 {[%emt 0:00:02]} 36. Kf2 {[%emt 0:00:24]} Kf6 {[%emt 0:00:05]} 37. Ke3 {[%emt 0:00:12]} Ke5 {[%emt 0:04:08]} 38. Re4+ {[%emt 0:00:05]} Kf5 {[%emt 0:00:02]} 39. Be6+ {[%emt 0:00:49]} Kf6 {[%emt 0:00:10]} 40. Bb3 {[%emt 0:00:00]} Rd6 {[%emt 0:00:00]} 41. Ra4 {[%emt 0:02:07]} Kg5 {[%emt 0:01:26]} 42. Bc4 {[%emt 0:01:47]} Rc6 {[%emt 0:00:25]} 43. Bxa6 {[%emt 0:00:29]} ({Stronger than} 43. Rxa6 Rxc4 44. Kf2 Kh4 $11) 43... Rc3+ {[%emt 0:00:10]} (43... Rc1 $142 44. Be2 Kh6 45. Rh4+ Kg7) 44. Bd3 $18 {[%emt 0:01:39]} Rc1 {[%emt 0:00:33]} 45. Rc4 {[%emt 0:05:45]} Rh1 {[%emt 0:00:10]} 46. h4+ {[%emt 0:02:09]} Kf6 {[%emt 0:00:08]} 47. a4 {[%emt 0:00:04]} Ra1 {[%emt 0:00:44]} 48. Bc2 {[%emt 0:03:46]} Ke5 {[%emt 0:01:22]} 49. Kd2 {[%emt 0:01:46]} Ra3 {[%emt 0:00:51]} 50. Kc1 {[%emt 0:05:20]} Kd5 {[%emt 0:01:07]} 51. Kb2 {[%emt 0:00:16]} Rh3 {[%emt 0:00:43]} 52. Bb3 {[%emt 0:00:08]} Kd6 {[%emt 0:00:28]} 53. a5 {[%emt 0:00:06]} Rh2+ {[%emt 0:00:13]} 54. Ka3 {[%emt 0:01:03]} Re2 {[%emt 0:00:11]} 55. a6 {[%emt 0:00:10]} Re7 {[%emt 0:00:06]} 56. Kb4 {[%emt 0:01:17]} h6 {[%emt 0:00:18]} 57. Kb5 {[%emt 0:00:10]} g5 {[%emt 0:00:18]} 58. h5 {[%emt 0:00:16]} Ke5 {[%emt 0:01:59]} 59. Kb6 {[%emt 0:01:24]} Kf5 {[%emt 0:04:19]} 60. Bc2+ {[%emt 0:00:17]} Kf6 {[%emt 0:00:13]} 61. a7 {[%emt 0:00:06]} Re8 {[%emt 0:00:17]} 62. Kb7 {[%emt 0:00:32]} Re7+ {[%emt 0:00:07]} 63. Kb8 {[%emt 0:00:38]} 1-0